[Event "SVK Amateur-ch 2020"]
[Site "Topolcany"]
[Date "2020.07.13"]
[Round "5.3"]
[White "Miciak, Emanuel"]
[Black "Bielik, Miroslav"]
[Result "0-1"]
[ECO "D02"]
[WhiteElo "1839"]
[BlackElo "2133"]
[Annotator "ChessBase"]
[PlyCount "48"]
[EventDate "2020.07.10"]
[EventType "swiss"]
[EventCountry "SVK"]
[TimeControl "3600+30"]

1. d4 {[%emt 0:00:00]} d5 {[%emt 0:00:00]} 2. Nf3 {[%emt 0:00:00]} Nf6 {[%emt 0:00:00]} 3. Bf4 {[%emt 0:00:00]} c5 {[%emt 0:00:00]} 4. e3 {[%emt 0:00:00]} Qb6 {[%emt 0:00:17]} 5. b3 {[%emt 0:00:18]} Nc6 {[%emt 0:01:08]} 6. dxc5 {[%emt 0:02:23]} Qxc5 {[%emt 0:00:07]} 7. Bd3 {[%emt 0:01:04]} Bg4 {[%emt 0:00:10]} 8. h3 {[%emt 0:00:47]} Bxf3 {[%emt 0:01:08]} 9. Qxf3 {[%emt 0:00:38]} e5 {[%emt 0:00:20]} 10. O-O {[%emt 0:05:42]} e4 {[%emt 0:03:12]} 11. Qe2 {[%emt 0:00:54]} exd3 {[%emt 0:00:06]} 12. cxd3 {[%emt 0:00:03]} Be7 {[%emt 0:00:26]} 13. d4 {[%emt 0:01:28]} Qa5 {[%emt 0:06:46]} 14. Nd2 {[%emt 0:00:47]} O-O {[%emt 0:00:51]} 15. Nf3 {[%emt 0:01:01]} Rac8 {[%emt 0:00:07]} 16. Ne5 {[%emt 0:00:38]} Rfd8 {[%emt 0:03:14]} 17. g4 {[%emt 0:01:03]} Nxe5 {[%emt 0:00:39]} 18. dxe5 {[%emt 0:00:10]} Ne4 {[%emt 0:01:10]} 19. f3 {[%emt 0:00:31]} Nc5 {[%emt 0:02:34]} 20. Rfc1 {[%emt 0:01:03]} Ne6 {[%emt 0:02:53]} 21. Bg3 {[%emt 0:00:54]} Ba3 {[%emt 0:00:10]} 22. Rd1 {[%emt 0:01:10]} Qc3 {[%emt 0:00:38]} 23. Be1 {[%emt 0:00:58]} Qxe5 {[%emt 0:00:18]} 24. f4 {[%emt 0:00:23]} Nxf4 {[%emt 0:00:38]} 0-1

[Event "SVK Amateur-ch 2020"]
[Site "Topolcany"]
[Date "2020.07.13"]
[Round "5.5"]
[White "Matejov, Jaroslav"]
[Black "Mesaros, Jan"]
[Result "1/2-1/2"]
[ECO "B26"]
[WhiteElo "2021"]
[BlackElo "1782"]
[Annotator "ChessBase"]
[PlyCount "133"]
[EventDate "2020.07.10"]
[EventType "swiss"]
[EventCountry "SVK"]
[TimeControl "3600+30"]

1. e4 {[%emt 0:00:00]} c5 {[%emt 0:00:01]} 2. Nc3 {[%emt 0:00:04]} Nc6 {[%emt 0:00:24]} 3. g3 {[%emt 0:00:12]} g6 {[%emt 0:00:24]} 4. Bg2 {[%emt 0:00:07]} Bg7 {[%emt 0:00:10]} 5. Nge2 {[%emt 0:00:11]} e6 {[%emt 0:00:42]} 6. d3 {[%emt 0:00:12]} Nge7 {[%emt 0:00:26]} 7. O-O {[%emt 0:00:12]} O-O {[%emt 0:00:22]} 8. Be3 {[%emt 0:00:18]} Nd4 {[%emt 0:00:19]} 9. Qd2 {[%emt 0:01:15]} d6 {[%emt 0:01:02]} 10. h3 {[%emt 0:01:17]} Rb8 {[%emt 0:01:08]} 11. Kh2 {[%emt 0:01:04]} b5 {[%emt 0:00:32]} 12. Nd1 {[%emt 0:05:55]} Bd7 {[%emt 0:04:46]} 13. c3 {[%emt 0:03:31]} Nxe2 {[%emt 0:00:17]} 14. Qxe2 {[%emt 0:00:10]} b4 {[%emt 0:00:32]} 15. f4 {[%emt 0:01:11]} bxc3 {[%emt 0:00:46]} 16. bxc3 {[%emt 0:00:28]} Qa5 {[%emt 0:01:03]} 17. Qd2 {[%emt 0:03:19]} Ba4 {[%emt 0:04:48]} 18. d4 {[%emt 0:02:31]} cxd4 {[%emt 0:03:49]} 19. Bxd4 {[%emt 0:00:27]} e5 {[%emt 0:00:19]} 20. fxe5 {[%emt 0:01:32]} dxe5 {[%emt 0:00:12]} 21. Be3 {[%emt 0:02:37]} Bb5 {[%emt 0:02:29]} 22. Rf3 {[%emt 0:01:31]} Bc4 {[%emt 0:09:27]} 23. Qf2 {[%emt 0:01:13]} Rb7 {[%emt 0:00:35]} 24. Bc5 {[%emt 0:02:41]} Rc7 {[%emt 0:02:05]} 25. Bb4 {[%emt 0:01:56]} Qa6 {[%emt 0:00:30]} 26. Ne3 {[%emt 0:00:26]} Re8 {[%emt 0:12:18]} 27. Bf1 {[%emt 0:00:30]} Bxf1 {[%emt 0:00:30]} 28. Rxf1 {[%emt 0:00:30]} Qe6 {[%emt 0:00:30]} 29. Rxf7 {[%emt 0:00:52]} h6 {[%emt 0:02:13]} 30. Bxe7 {[%emt 0:03:58]} Rcxe7 {[%emt 0:02:14]} 31. Rxe7 {[%emt 0:00:30]} Rxe7 {[%emt 0:00:30]} 32. Nd5 {[%emt 0:00:30]} Rb7 {[%emt 0:00:30]} 33. Qc2 {[%emt 0:01:11]} Qa6 {[%emt 0:01:17]} 34. Rf2 {[%emt 0:00:35]} Qc4 {[%emt 0:00:53]} 35. Qe2 {[%emt 0:01:05]} Qc5 {[%emt 0:06:47]} 36. Kg2 {[%emt 0:00:31]} Qa3 {[%emt 0:00:30]} 37. h4 {[%emt 0:01:10]} Rb1 {[%emt 0:01:59]} 38. Qc4 {[%emt 0:03:10]} Kh7 {[%emt 0:00:12]} 39. h5 {[%emt 0:08:20]} gxh5 {[%emt 0:03:09]} 40. Qe2 {[%emt 0:00:30]} Qc1 {[%emt 0:00:04]} 41. Rf1 {[%emt 0:02:22]} Rb2 {[%emt 0:00:05]} 42. Rxc1 {[%emt 0:00:15]} Rxe2+ {[%emt 0:01:53]} 43. Kf3 {[%emt 0:00:30]} Rxa2 {[%emt 0:00:30]} 44. c4 {[%emt 0:00:30]} Ra3+ {[%emt 0:00:30]} 45. Rc3 {[%emt 0:00:30]} Rxc3+ {[%emt 0:00:30]} 46. Nxc3 {[%emt 0:00:31]} Bf8 {[%emt 0:00:41]} 47. Na4 {[%emt 0:00:30]} Kg6 {[%emt 0:00:30]} 48. Ke3 {[%emt 0:02:13]} Kf6 {[%emt 0:00:11]} 49. c5 {[%emt 0:00:29]} Ke6 {[%emt 0:00:06]} 50. Kd3 {[%emt 0:00:01]} Kd7 {[%emt 0:00:41]} 51. Kc4 {[%emt 0:00:30]} Kc6 {[%emt 0:00:30]} 52. Kb4 {[%emt 0:01:37]} Be7 {[%emt 0:00:26]} 53. Kc4 {[%emt 0:01:06]} h4 {[%emt 0:00:11]} 54. gxh4 {[%emt 0:00:34]} Bxh4 {[%emt 0:00:09]} 55. Nb2 {[%emt 0:00:14]} a6 {[%emt 0:02:10]} 56. Nd3 {[%emt 0:00:10]} Bf6 {[%emt 0:01:26]} 57. Nb4+ {[%emt 0:00:31]} Kb7 {[%emt 0:00:30]} 58. Kd5 {[%emt 0:00:30]} a5 {[%emt 0:00:30]} 59. c6+ {[%emt 0:01:48]} Kb6 {[%emt 0:00:20]} 60. Kd6 {[%emt 0:00:29]} Bd8 {[%emt 0:00:19]} 61. Nd5+ {[%emt 0:00:20]} Kb5 {[%emt 0:01:51]} 62. c7 {[%emt 0:00:30]} Bxc7+ {[%emt 0:00:30]} 63. Nxc7+ {[%emt 0:00:30]} Kc4 {[%emt 0:00:30]} 64. Kxe5 {[%emt 0:00:13]} a4 {[%emt 0:00:02]} 65. Nd5 {[%emt 0:00:29]} a3 {[%emt 0:00:06]} 66. Ne3+ {[%emt 0:00:31]} Kd3 {[%emt 0:00:07]} 67. Nd5 {[%emt 0:00:14]} 1/2-1/2

[Event "SVK Amateur-ch 2020"]
[Site "Topolcany"]
[Date "2020.07.13"]
[Round "5.6"]
[White "Szocs, Ladislav"]
[Black "Podoba, Milan"]
[Result "1-0"]
[ECO "D11"]
[WhiteElo "1801"]
[BlackElo "2023"]
[Annotator "ChessBase"]
[PlyCount "49"]
[EventDate "2020.07.10"]
[EventType "swiss"]
[EventCountry "SVK"]
[TimeControl "3600+30"]

1. Nf3 {[%emt 0:00:00]} d5 {[%emt 0:00:00]} 2. g3 {[%emt 0:00:05]} Nf6 {[%emt 0:00:00]} 3. Bg2 {[%emt 0:00:14]} Bf5 {[%emt 0:00:16]} 4. O-O {[%emt 0:00:38]} e6 {[%emt 0:00:16]} 5. d4 {[%emt 0:01:08]} Nbd7 {[%emt 0:00:41]} 6. c4 {[%emt 0:01:47]} c6 {[%emt 0:00:20]} 7. b3 {[%emt 0:08:25]} h6 {[%emt 0:01:50]} 8. Nc3 {[%emt 0:00:29]} Be7 {[%emt 0:00:53]} 9. Bb2 {[%emt 0:00:39]} O-O {[%emt 0:01:10]} 10. cxd5 {[%emt 0:03:46]} exd5 {[%emt 0:01:17]} 11. a3 {[%emt 0:02:04]} a5 {[%emt 0:01:37]} 12. Nd2 {[%emt 0:03:10]} Re8 {[%emt 0:13:35]} 13. Re1 {[%emt 0:02:07]} Qb6 {[%emt 0:05:09]} 14. e4 {[%emt 0:08:49]} Bg4 {[%emt 0:03:04]} 15. Qc2 {[%emt 0:01:00]} dxe4 {[%emt 0:03:21]} 16. Ndxe4 {[%emt 0:00:50]} Nxe4 {[%emt 0:01:05]} 17. Nxe4 {[%emt 0:01:31]} Be6 {[%emt 0:06:22]} 18. Nd2 {[%emt 0:01:31]} Nf6 {[%emt 0:02:24]} 19. Nc4 {[%emt 0:08:29]} Qb5 {[%emt 0:02:11]} 20. Re5 {[%emt 0:00:39]} c5 {[%emt 0:10:47]} 21. dxc5 {[%emt 0:06:56]} Rac8 {[%emt 0:01:56]} 22. c6 {[%emt 0:03:12]} Nd5 {[%emt 0:02:41]} 23. cxb7 {[%emt 0:02:05]} Qxb7 {[%emt 0:00:43]} 24. Rae1 {[%emt 0:01:07]} Bf6 {[%emt 0:02:02]} 25. Bxd5 {[%emt 0:01:15]} 1-0

[Event "SVK Amateur-ch 2020"]
[Site "Topolcany"]
[Date "2020.07.13"]
[Round "5.7"]
[White "Kolesar, Peter"]
[Black "Panda Gyorgy"]
[Result "1-0"]
[ECO "B42"]
[WhiteElo "2002"]
[BlackElo "1773"]
[Annotator "ChessBase"]
[PlyCount "71"]
[EventDate "2020.07.10"]
[EventType "swiss"]
[EventCountry "SVK"]
[TimeControl "3600+30"]

1. e4 {[%emt 0:00:00]} c5 {[%emt 0:00:00]} 2. Nf3 {[%emt 0:00:00]} e6 {[%emt 0:00:00]} 3. d4 {[%emt 0:00:00]} cxd4 {[%emt 0:00:09]} 4. Nxd4 {[%emt 0:00:06]} a6 {[%emt 0:00:09]} 5. c4 {[%emt 0:00:09]} Nf6 {[%emt 0:00:09]} 6. Bd3 {[%emt 0:04:34]} Qc7 {[%emt 0:01:53]} 7. O-O {[%emt 0:02:48]} Bc5 {[%emt 0:00:19]} 8. Nb3 {[%emt 0:02:23]} Ba7 {[%emt 0:00:19]} 9. Nc3 {[%emt 0:03:18]} d6 {[%emt 0:04:12]} 10. Bf4 {[%emt 0:02:29]} Nbd7 {[%emt 0:01:55]} 11. Qe2 {[%emt 0:05:27]} O-O {[%emt 0:00:38]} 12. Rad1 {[%emt 0:01:31]} Ne5 {[%emt 0:01:48]} 13. h3 {[%emt 0:06:32]} Bd7 {[%emt 0:09:55]} 14. Nd2 {[%emt 0:02:02]} Rac8 {[%emt 0:02:41]} 15. b3 {[%emt 0:00:23]} b5 {[%emt 0:01:17]} 16. Ncb1 {[%emt 0:01:43]} bxc4 {[%emt 0:03:12]} 17. Nxc4 {[%emt 0:00:50]} Nxd3 {[%emt 0:02:17]} 18. Qxd3 {[%emt 0:00:30]} e5 {[%emt 0:00:06]} 19. Bg5 {[%emt 0:02:40]} Bb5 {[%emt 0:01:24]} 20. Nba3 {[%emt 0:05:18]} Bd4 {[%emt 0:04:01]} 21. Bxf6 {[%emt 0:01:04]} gxf6 {[%emt 0:00:13]} 22. Qg3+ {[%emt 0:03:49]} Kh8 {[%emt 0:00:10]} 23. Qh4 {[%emt 0:00:09]} Qe7 {[%emt 0:00:26]} 24. Rd3 {[%emt 0:09:10]} Rg8 {[%emt 0:00:08]} 25. Nxb5 {[%emt 0:00:14]} axb5 {[%emt 0:00:20]} 26. Ne3 {[%emt 0:00:33]} Qe6 {[%emt 0:02:09]} 27. Nf5 {[%emt 0:01:07]} Bc5 {[%emt 0:00:42]} 28. Rfd1 {[%emt 0:02:28]} Rcd8 {[%emt 0:01:15]} 29. Kh1 {[%emt 0:03:29]} Rg6 {[%emt 0:00:26]} 30. f3 {[%emt 0:00:25]} Rgg8 {[%emt 0:02:46]} 31. Qe1 {[%emt 0:00:34]} Rd7 {[%emt 0:00:57]} 32. Rd5 {[%emt 0:00:09]} Ra8 {[%emt 0:01:12]} 33. Qd2 {[%emt 0:00:33]} Rdd8 {[%emt 0:01:21]} 34. Rxc5 {[%emt 0:01:57]} dxc5 {[%emt 0:00:08]} 35. Qxd8+ {[%emt 0:00:10]} Qe8 {[%emt 0:00:07]} 36. Qxf6+ {[%emt 0:01:29]} 1-0

[Event "SVK Amateur-ch 2020"]
[Site "Topolcany"]
[Date "2020.07.13"]
[Round "5.8"]
[White "Kukan, Michal"]
[Black "Kucera, Michal"]
[Result "0-1"]
[ECO "A29"]
[WhiteElo "1760"]
[BlackElo "1978"]
[Annotator "ChessBase"]
[PlyCount "22"]
[EventDate "2020.07.10"]
[EventType "swiss"]
[EventCountry "SVK"]
[TimeControl "3600+30"]

1. c4 {[%emt 0:00:00]} e5 {[%emt 0:00:00]} 2. Nc3 {[%emt 0:00:10]} Nf6 {[%emt 0:00:00]} 3. g3 {[%emt 0:00:13]} d5 {[%emt 0:01:54]} 4. cxd5 {[%emt 0:00:16]} Nxd5 {[%emt 0:00:06]} 5. Bg2 {[%emt 0:00:46]} Nb6 {[%emt 0:00:34]} 6. d3 {[%emt 0:00:44]} Be7 {[%emt 0:01:31]} 7. Nf3 {[%emt 0:00:14]} Nc6 {[%emt 0:00:08]} 8. O-O {[%emt 0:00:11]} O-O {[%emt 0:01:13]} 9. Bd2 {[%emt 0:00:30]} Be6 {[%emt 0:00:50]} 10. a3 {[%emt 0:00:33]} a5 {[%emt 0:04:45]} 11. Nb5 {[%emt 0:02:59]} f6 {[%emt 0:01:43]} 0-1

[Event "SVK Amateur-ch 2020"]
[Site "Topolcany"]
[Date "2020.07.13"]
[Round "5.9"]
[White "Juan Mas, Santiago"]
[Black "Varga, Milan"]
[Result "1/2-1/2"]
[ECO "C28"]
[WhiteElo "1983"]
[BlackElo "1839"]
[Annotator "ChessBase"]
[PlyCount "141"]
[EventDate "2020.07.10"]
[EventType "swiss"]
[EventCountry "SVK"]
[TimeControl "3600+30"]

1. e4 {[%emt 0:00:00]} e5 {[%emt 0:00:08]} 2. Nc3 {[%emt 0:00:42]} Nc6 {[%emt 0:01:01]} 3. Bc4 {[%emt 0:00:42]} Nf6 {[%emt 0:00:59]} 4. d3 {[%emt 0:00:58]} Be7 {[%emt 0:01:33]} 5. f4 {[%emt 0:00:42]} d6 {[%emt 0:02:36]} 6. Nf3 {[%emt 0:01:27]} h6 {[%emt 0:03:57]} 7. a3 {[%emt 0:05:07]} Bg4 {[%emt 0:01:08]} 8. h3 {[%emt 0:01:00]} Bxf3 {[%emt 0:01:32]} 9. Qxf3 {[%emt 0:00:04]} Nd4 {[%emt 0:01:57]} 10. Qf2 {[%emt 0:00:40]} Nh5 {[%emt 0:02:34]} 11. Bxf7+ {[%emt 0:03:22]} Kxf7 {[%emt 0:02:39]} 12. fxe5+ {[%emt 0:00:08]} Kg8 {[%emt 0:01:16]} 13. O-O {[%emt 0:01:47]} dxe5 {[%emt 0:02:37]} 14. Qf7+ {[%emt 0:01:07]} Kh7 {[%emt 0:00:12]} 15. Qxh5 {[%emt 0:01:39]} Rf8 {[%emt 0:06:19]} 16. Bxh6 {[%emt 0:04:57]} g6 {[%emt 0:04:07]} 17. Bxf8+ {[%emt 0:06:36]} gxh5 {[%emt 0:03:24]} 18. Rf7+ {[%emt 0:01:43]} Kg8 {[%emt 0:00:55]} 19. Bxe7 {[%emt 0:00:12]} Qd7 {[%emt 0:03:58]} 20. Raf1 {[%emt 0:01:53]} Qe6 {[%emt 0:01:17]} 21. Nd5 {[%emt 0:18:59]} Qxf7 {[%emt 0:03:12]} 22. Rxf7 {[%emt 0:00:10]} Kxf7 {[%emt 0:00:07]} 23. Bg5 {[%emt 0:08:21]} Nxc2 {[%emt 0:04:48]} 24. Nxc7 {[%emt 0:02:38]} Rg8 {[%emt 0:01:24]} 25. h4 {[%emt 0:01:56]} Ne1 {[%emt 0:01:07]} 26. d4 {[%emt 0:00:46]} exd4 {[%emt 0:02:13]} 27. e5 {[%emt 0:00:59]} Rg6 {[%emt 0:10:09]} 28. e6+ {[%emt 0:04:23]} Rxe6 {[%emt 0:00:09]} 29. Nxe6 {[%emt 0:00:04]} Kxe6 {[%emt 0:00:07]} 30. Kf2 {[%emt 0:00:26]} Nd3+ {[%emt 0:00:14]} 31. Kf3 {[%emt 0:00:31]} Nxb2 {[%emt 0:00:25]} 32. g4 {[%emt 0:00:32]} hxg4+ {[%emt 0:01:25]} 33. Kxg4 {[%emt 0:00:02]} Nc4 {[%emt 0:00:49]} 34. h5 {[%emt 0:01:28]} Kf7 {[%emt 0:00:24]} 35. Kf3 {[%emt 0:00:22]} Nxa3 {[%emt 0:01:01]} 36. Ke4 {[%emt 0:00:15]} Nb5 {[%emt 0:00:19]} 37. Bd2 {[%emt 0:00:21]} a6 {[%emt 0:00:57]} 38. Kd5 {[%emt 0:00:14]} Kg7 {[%emt 0:01:50]} 39. Kc5 {[%emt 0:00:32]} d3 {[%emt 0:00:36]} 40. Kb6 {[%emt 0:00:50]} Nd6 {[%emt 0:00:33]} 41. Bb4 {[%emt 0:01:06]} Nc4+ {[%emt 0:01:27]} 42. Kxb7 {[%emt 0:00:59]} a5 {[%emt 0:00:23]} 43. Bc3+ {[%emt 0:00:00]} Kh6 {[%emt 0:00:14]} 44. Ka6 {[%emt 0:00:00]} a4 {[%emt 0:00:39]} 45. Kb5 {[%emt 0:00:08]} Nb2 {[%emt 0:00:21]} 46. Kb4 {[%emt 0:01:17]} Kxh5 {[%emt 0:01:26]} 47. Ka3 {[%emt 0:00:38]} Nd1 {[%emt 0:00:38]} 48. Ba5 {[%emt 0:00:32]} Kg4 {[%emt 0:00:09]} 49. Kxa4 {[%emt 0:00:15]} Kf4 {[%emt 0:00:17]} 50. Kb3 {[%emt 0:00:20]} Ke4 {[%emt 0:00:25]} 51. Bb4 {[%emt 0:00:58]} Ne3 {[%emt 0:00:12]} 52. Kb2 {[%emt 0:00:31]} Kd4 {[%emt 0:00:15]} 53. Bc3+ {[%emt 0:00:28]} Kc4 {[%emt 0:00:53]} 54. Bd2 {[%emt 0:00:27]} Nf1 {[%emt 0:00:47]} 55. Ba5 {[%emt 0:00:20]} Ng3 {[%emt 0:00:21]} 56. Kc1 {[%emt 0:00:24]} Ne2+ {[%emt 0:01:01]} 57. Kd2 {[%emt 0:00:30]} Nd4 {[%emt 0:00:30]} 58. Bd8 {[%emt 0:00:12]} Nb3+ {[%emt 0:00:14]} 59. Kd1 {[%emt 0:00:14]} Kc3 {[%emt 0:01:13]} 60. Bf6+ {[%emt 0:00:34]} Kc4 {[%emt 0:00:00]} 61. Bg7 {[%emt 0:00:48]} Kd5 {[%emt 0:00:00]} 62. Bf6 {[%emt 0:00:39]} Ke4 {[%emt 0:00:03]} 63. Bg7 {[%emt 0:00:31]} Nd4 {[%emt 0:00:17]} 64. Bxd4 {[%emt 0:00:33]} Kxd4 {[%emt 0:00:14]} 65. Kd2 {[%emt 0:00:13]} Ke4 {[%emt 0:00:09]} 66. Kd1 {[%emt 0:00:10]} Ke3 {[%emt 0:00:26]} 67. Ke1 {[%emt 0:00:07]} Ke4 {[%emt 0:00:35]} 68. Kd1 {[%emt 0:00:15]} Kd4 {[%emt 0:00:07]} 69. Kd2 {[%emt 0:00:05]} Kc4 {[%emt 0:00:13]} 70. Kd1 {[%emt 0:00:08]} Kc3 {[%emt 0:00:09]} 71. Kc1 {[%emt 0:00:05]} 1/2-1/2

[Event "SVK Amateur-ch 2020"]
[Site "Topolcany"]
[Date "2020.07.13"]
[Round "5.11"]
[White "Trangos, Miroslav"]
[Black "Skrinar, Marek"]
[Result "1-0"]
[ECO "E22"]
[WhiteElo "1971"]
[BlackElo "1668"]
[Annotator "ChessBase"]
[PlyCount "61"]
[EventDate "2020.07.10"]
[EventType "swiss"]
[EventCountry "SVK"]
[TimeControl "3600+30"]

1. d4 {[%emt 0:00:00]} Nf6 {[%emt 0:00:00]} 2. c4 {[%emt 0:00:00]} e6 {[%emt 0:00:00]} 3. Nc3 {[%emt 0:00:00]} Bb4 {[%emt 0:00:03]} 4. Qc2 {[%emt 0:00:00]} Bxc3+ {[%emt 0:00:18]} 5. Qxc3 {[%emt 0:00:25]} d5 {[%emt 0:00:08]} 6. e3 {[%emt 0:02:47]} O-O {[%emt 0:00:51]} 7. Bd3 {[%emt 0:00:21]} dxc4 {[%emt 0:00:53]} 8. Bxc4 {[%emt 0:01:43]} b6 {[%emt 0:02:40]} 9. Nf3 {[%emt 0:02:21]} Bb7 {[%emt 0:00:27]} 10. b3 {[%emt 0:03:51]} Nbd7 {[%emt 0:00:50]} 11. Ba3 {[%emt 0:01:05]} Re8 {[%emt 0:00:26]} 12. Rd1 {[%emt 0:01:43]} Ne4 {[%emt 0:01:15]} 13. Qc2 {[%emt 0:00:27]} Ndf6 {[%emt 0:16:04]} 14. Bb5 {[%emt 0:04:17]} c6 {[%emt 0:04:01]} 15. Bd3 {[%emt 0:00:19]} Qd5 {[%emt 0:05:05]} 16. O-O {[%emt 0:08:02]} h6 {[%emt 0:25:20]} 17. Ne5 {[%emt 0:04:41]} Nd6 {[%emt 0:03:00]} 18. f3 {[%emt 0:02:13]} Nb5 {[%emt 0:01:37]} 19. Bb2 {[%emt 0:00:50]} Rac8 {[%emt 0:02:47]} 20. a4 {[%emt 0:01:10]} Nc7 {[%emt 0:00:16]} 21. e4 {[%emt 0:07:49]} Qd8 {[%emt 0:01:53]} 22. Qf2 {[%emt 0:07:06]} Na6 {[%emt 0:01:25]} 23. Ba3 {[%emt 0:00:27]} Nb8 {[%emt 0:00:35]} 24. Nc4 {[%emt 0:00:32]} c5 {[%emt 0:00:56]} 25. e5 {[%emt 0:00:42]} Nd5 {[%emt 0:00:30]} 26. Nd6 {[%emt 0:00:24]} cxd4 {[%emt 0:00:38]} 27. Nxb7 {[%emt 0:00:48]} Qc7 {[%emt 0:00:10]} 28. Nd6 {[%emt 0:00:17]} Ne3 {[%emt 0:00:14]} 29. Rc1 {[%emt 0:02:46]} Qxc1 {[%emt 0:00:23]} 30. Rxc1 {[%emt 0:00:08]} Rxc1+ {[%emt 0:00:08]} 31. Bxc1 {[%emt 0:00:05]} 1-0

[Event "SVK Amateur-ch 2020"]
[Site "Topolcany"]
[Date "2020.07.13"]
[Round "5.12"]
[White "Rabovszky Gyorgy"]
[Black "Blazek, Milos"]
[Result "1/2-1/2"]
[ECO "C68"]
[WhiteElo "1716"]
[BlackElo "1977"]
[Annotator "ChessBase"]
[PlyCount "112"]
[EventDate "2020.07.10"]
[EventType "swiss"]
[EventCountry "SVK"]
[TimeControl "3600+30"]

1. e4 {[%emt 0:00:00]} e5 {[%emt 0:00:00]} 2. Nf3 {[%emt 0:00:00]} Nc6 {[%emt 0:00:00]} 3. Bb5 {[%emt 0:00:02]} a6 {[%emt 0:00:00]} 4. Bxc6 {[%emt 0:00:33]} dxc6 {[%emt 0:00:00]} 5. d4 {[%emt 0:00:54]} exd4 {[%emt 0:01:16]} 6. Qxd4 {[%emt 0:00:49]} Qxd4 {[%emt 0:01:56]} 7. Nxd4 {[%emt 0:00:03]} c5 {[%emt 0:01:25]} 8. Ne2 {[%emt 0:00:24]} Bd6 {[%emt 0:02:25]} 9. Nbc3 {[%emt 0:00:53]} Ne7 {[%emt 0:00:59]} 10. Be3 {[%emt 0:06:33]} O-O {[%emt 0:04:57]} 11. e5 {[%emt 0:07:11]} Bxe5 {[%emt 0:02:16]} 12. Bxc5 {[%emt 0:02:09]} Re8 {[%emt 0:00:39]} 13. O-O-O {[%emt 0:00:21]} Be6 {[%emt 0:05:20]} 14. f4 {[%emt 0:01:32]} Bxc3 {[%emt 0:03:01]} 15. Nxc3 {[%emt 0:00:02]} b6 {[%emt 0:05:51]} 16. Bxe7 {[%emt 0:02:37]} Rxe7 {[%emt 0:00:08]} 17. Rhe1 {[%emt 0:00:50]} Kf8 {[%emt 0:02:01]} 18. a3 {[%emt 0:13:16]} Rae8 {[%emt 0:02:34]} 19. Rd2 {[%emt 0:02:05]} Bc4 {[%emt 0:04:28]} 20. Rxe7 {[%emt 0:00:48]} Rxe7 {[%emt 0:00:43]} 21. Rd8+ {[%emt 0:01:19]} Re8 {[%emt 0:00:20]} 22. Rxe8+ {[%emt 0:03:06]} Kxe8 {[%emt 0:00:15]} 23. Kd2 {[%emt 0:00:15]} Kd7 {[%emt 0:01:11]} 24. Ke3 {[%emt 0:01:05]} Ke6 {[%emt 0:02:36]} 25. g3 {[%emt 0:05:32]} f5 {[%emt 0:05:47]} 26. Kd4 {[%emt 0:01:02]} Bf1 {[%emt 0:01:05]} 27. b4 {[%emt 0:01:11]} Kd6 {[%emt 0:00:08]} 28. Nd1 {[%emt 0:03:24]} c5+ {[%emt 0:04:05]} 29. Kc3 {[%emt 0:02:38]} g6 {[%emt 0:02:15]} 30. Ne3 {[%emt 0:02:00]} Be2 {[%emt 0:01:11]} 31. Kd2 {[%emt 0:02:23]} Bb5 {[%emt 0:01:29]} 32. c4 {[%emt 0:03:07]} Bc6 {[%emt 0:00:52]} 33. g4 {[%emt 0:02:03]} Be4 {[%emt 0:06:58]} 34. g5 {[%emt 0:00:50]} Kc6 {[%emt 0:05:32]} 35. Kc3 {[%emt 0:00:28]} Kd6 {[%emt 0:00:49]} 36. a4 {[%emt 0:01:00]} a5 {[%emt 0:02:28]} 37. bxa5 {[%emt 0:00:20]} bxa5 {[%emt 0:00:01]} 38. Nf1 {[%emt 0:01:42]} Bf3 {[%emt 0:00:37]} 39. Kc2 {[%emt 0:01:21]} Be4+ {[%emt 0:00:33]} 40. Kb3 {[%emt 0:00:13]} Bf3 {[%emt 0:00:16]} 41. h4 {[%emt 0:01:22]} Bd1+ {[%emt 0:00:10]} 42. Ka3 {[%emt 0:00:08]} Kc6 {[%emt 0:01:35]} 43. Ne3 {[%emt 0:00:57]} Bf3 {[%emt 0:00:09]} 44. Kb3 {[%emt 0:00:36]} Kd6 {[%emt 0:00:05]} 45. Kc2 {[%emt 0:00:22]} Kc6 {[%emt 0:00:49]} 46. Kd2 {[%emt 0:00:14]} Kd6 {[%emt 0:00:11]} 47. Kd3 {[%emt 0:00:48]} Bc6 {[%emt 0:00:23]} 48. h5 {[%emt 0:00:09]} Bxa4 {[%emt 0:00:33]} 49. hxg6 {[%emt 0:00:32]} hxg6 {[%emt 0:00:04]} 50. Nd5 {[%emt 0:00:10]} Bc6 {[%emt 0:00:38]} 51. Ne3 {[%emt 0:00:24]} Bf3 {[%emt 0:01:25]} 52. Kc3 {[%emt 0:00:14]} Bc6 {[%emt 0:00:26]} 53. Kb3 {[%emt 0:00:19]} Kc7 {[%emt 0:00:35]} 54. Nc2 {[%emt 0:00:44]} Kd6 {[%emt 0:00:16]} 55. Ne3 {[%emt 0:00:19]} Ke6 {[%emt 0:00:38]} 56. Nd1 {[%emt 0:01:36]} Kd6 {[%emt 0:00:28]} 1/2-1/2